Cogmind - Beta 11.1 *** ADVENTURER MODE // 2022.10.25 @ 00:32:10 Player: Deus Result: Destroyed by P-80 Master with Gamma Rifle Performance ------------- Evolutions (7) 3500 Regions Visited (17) 3400 Robots Destroyed (145) 725 Value Destroyed (6447) 6447 Prototype IDs (14) 280 Alien Tech Used (0) 0 Bonus (3868) 3868 TOTAL SCORE: 18220 Bonus ------- Triggered Max Security 1000 High Alert Combat Kills 60 Follower Combat Kills 120 Aligned with FarCom 300 Met Warlord at Base 500 MAIN.C Attacked Warlord 500 Warlord Defense Kills 1466 Friendly Fire -78 Cogmind --------- Core Integrity 0/1300 Matter 225/300 Energy 100/100 System Corruption 20% Temperature Cool (0) Movement Core (50) Location -3/Testing Parts ------- > --- POWER (2) -------- (None) > --- PROPULSION (7) --- Antigrav Array > --- UTILITY (10) ----- Advanced Targeting Computer > --- WEAPON (2) ------- Nanosword > --- INVENTORY (5) ---- Heavy Beamcaster Coil Gun Coil Gun Heavy Gauss Cannon Heavy Mace Peak State ------------ > --- POWER ------------ Reinforced Fission Core Light Antimatter Reactor > --- PROPULSION ------- Myomer Leg Myomer Leg Myomer Leg Myomer Leg Myomer Leg Improved Linear Gravjet Improved Linear Gravjet > --- UTILITY ---------- Large Storage Unit Gravity Neutralizer Advanced Targeting Computer Improved Melee Analysis Suite Improved Melee Analysis Suite Improved Phase Shifter > --- WEAPON ----------- Quantum Rifle Hardcell Cannon > --- INVENTORY -------- Biometal Medium Treads Centrium Wheel Heavy Beamcaster Coil Gun Coil Gun Coil Gun Coil Gun Coil Gun Railgun Railgun Heavy Gauss Cannon Heavy Mace [Rating: 109] Favorites ----------- Power Fission Core Engine Heavy Ion Engine Power Core Fission Core Reactor Cold Fusion Reactor Propulsion Aluminum Leg Treads Improved Medium Treads Leg Aluminum Leg Hover Unit Improved Linear Gravjet Flight Unit Field Propulsion Array Utility Improved Cooling System Device Improved Cooling System Storage Large Storage Unit Processor Advanced Targeting Computer Hackware System Shield Protection Layered Light Armor Plating Weapon Heavy Particle Cannon Energy Gun Beam Rifle Energy Cannon Heavy Particle Cannon Ballistic Gun Light Assault Rifle Ballistic Cannon Hardcell Cannon Launcher Rocket Launcher Special Weapon RU-N14's Throwing Claymores v3 Impact Weapon Heavy Mace Slashing Weapon Great Axe Build | -11 -10 -10 -9 -9 -9 -8 -8 -7 -6 -5 -4 -4 -4 -4 -3 -3 -3 ------- Run | Scr Mat Min Mat Min Exi Min Mat Fac Fac Fac Fac Upp Upp War Pro Res Tes Slots Evolved 14 | . . . 2 . . . 2 2 2 2 2 . . . . 2 . Power 1 | . . . . . . . . . . . 1 . . . . . . Propulsion 5 | . . . 1 . . . 1 1 . . 1 . . . . 1 . Utility 8 | . . . 1 . . . 1 1 2 2 . . . . . 1 . Weapon . | . . . . . . . . . . . . . . . . . . Parts Attached 215 | 1 18 2 13 5 3 3 33 22 11 4 24 11 5 9 20 28 3 Power 23 | . 2 . 2 . 1 . 1 1 1 . 4 1 . 1 4 4 1 Engine 9 | . 2 . 1 . 1 . 1 1 . . 2 . . . . 1 . Core 11 | . . . 1 . . . . . 1 . 2 . . 1 4 2 . Reactor 3 | . . . . . . . . . . . . 1 . . . 1 1 Propulsion 66 | . 9 2 4 . . . 8 5 2 1 7 5 4 4 3 11 1 Treads 7 | . 4 . . . . . 1 . . . . . 1 . . 1 . Leg 53 | . 5 2 4 . . . 7 5 2 1 7 5 3 4 3 5 . Wheel . | . . . . . . . . . . . . . . . . . . Hover 3 | . . . . . . . . . . . . . . . . 2 1 Flight 3 | . . . . . . . . . . . . . . . . 3 . Utility 51 | 1 2 . 2 1 2 . 12 6 3 2 6 1 . 1 5 7 . Device 26 | 1 1 . 2 1 1 . 7 5 1 1 1 1 . . 2 2 . Storage 6 | . 1 . . . 1 . 1 . . . . . . . 2 1 . Processor 4 | . . . . . . . . . . . . . . . . 4 . Hackware 5 | . . . . . . . . 1 1 1 2 . . . . . . Protection 10 | . . . . . . . 4 . 1 . 3 . . 1 1 . . Artifact . | . . . . . . . . . . . . . . . . . . Weapon 75 | . 5 . 5 4 . 3 12 10 5 1 7 4 1 3 8 6 1 Energy Gun 23 | . 4 . 3 1 . 2 4 2 . . 2 1 . . 3 1 . Energy Cannon 15 | . . . . . . . 1 5 2 . 2 2 . 1 2 . . Ballistic Gun 3 | . 1 . . . . . . . . . . . . . . 2 . Ballistic Cannon 2 | . . . . . . . . . . . . . . . . 2 . Launcher 13 | . . . . 2 . 1 4 . 1 . 1 1 1 . 2 . . Special Weapon 3 | . . . . . . . . . . . . . . 2 1 . . Impact Weapon 14 | . . . 2 1 . . 3 2 2 1 2 . . . . 1 . Slashing Weapon 2 | . . . . . . . . 1 . . . . . . . . 1 Piercing Weapon . | . . . . . . . . . . . . . . . . . . Special Melee Weapon . | . . . . . . . . . . . . . . . . . . Unidentified Prototypes 7 | . . . 1 . 1 1 . . 1 . . . . 1 . 1 1 Parts Lost 66 | . 4 . 1 1 . . 7 2 . . 6 10 2 1 15 12 5 Power 7 | . 1 . . . . . . . . . 1 1 . . 2 1 1 Propulsion 34 | . 1 . . . . . 4 2 . . 2 5 2 1 7 7 3 Utility 21 | . . . 1 1 . . 3 . . . 3 3 . . 5 4 1 Weapon 4 | . 2 . . . . . . . . . . 1 . . 1 . . Highest Loss Streak 12 | . 2 . 1 1 . . 3 2 . . 3 6 2 1 12 6 5 To Critical Strikes 2 | . . . . . . . . . . . . . . . . 2 . Average Slot Usage (%) 93 | . 99 100 100 100 98 100 97 99 99 100 98 94 86 90 84 43 20 Engine 4 | . 14 14 1 11 11 11 9 7 . . 3 . . . . . . Core 3 | . . . 9 . . . . . 6 5 6 6 5 5 7 1 . Reactor 1 | . . . . . . . . . . . . 3 5 5 2 1 . Treads 1 | . 8 . . . . . . . . . . . 4 4 . 2 . Leg 29 | . 19 28 33 33 33 33 34 37 32 29 30 30 23 24 28 11 . Device 18 | . 14 14 22 22 19 11 14 28 23 23 20 15 15 15 15 5 . Storage 8 | . 14 14 11 11 11 22 13 7 6 5 5 5 5 5 4 2 . Hackware 4 | . . . . . . . . 1 8 17 12 10 10 10 7 . . Protection 3 | . . . . . . . 6 . 6 5 7 10 5 8 6 . . Energy Gun 6 | . 20 28 17 14 11 11 11 2 . . 4 . . . 3 1 . Energy Cannon 3 | . . . . . . . . 9 8 7 1 4 7 6 3 . . Launcher 1 | . . . . 7 . 8 4 . . . . 2 2 3 2 . . Impact Weapon 2 | . . . 4 . 11 2 1 2 3 3 3 2 . . . . . Naked Turns 36 | . . . . . . . . . . . . . . . 17 19 . Heaviest Build 140 | 14 22 22 25 28 27 27 45 51 54 54 66 68 68 89 140 71 14 Greatest Support 138 | 20 40 20 30 30 30 30 40 68 73 78 104 114 114 133 138 137 45 Greatest Overweight (x) 2 | . 2 1 . . . . 1 1 . . . . . . 2 1 . Average Overweight (x) . | . . 1 . . . . . . . . . . . . . . . Largest Inventory Capacity 25 | 8 10 10 10 10 10 10 15 15 15 15 15 15 15 15 25 15 5 Average Capacity 13 | 8 9 10 10 10 10 10 14 15 15 15 15 15 15 15 24 12 5 Most Carried 16 | 7 10 10 10 10 10 10 15 15 15 15 15 12 12 15 16 13 5 Average Carried 12 | 4 9 10 9 9 9 10 14 14 14 13 14 11 11 13 13 8 5 Final Capacity 15 | 8 10 10 10 10 10 10 15 15 15 15 15 15 15 15 5 5 5 Final Carried 15 | 6 10 10 10 10 10 10 15 14 15 15 12 12 11 15 5 5 5 Class Distribution -------------------- 46% | Hacker-Mutant 41% | Scavenger-Mutant 11% | Mutant Dominant Class ---------------- Mutant | -10/Materials Mutant | -10/Mines Scavenger-Mutant | -9/Materials Scavenger-Mutant | -9/Mines Scavenger-Mutant | -9/Exiles Scavenger-Mutant | -8/Mines Scavenger-Mutant | -8/Materials Scavenger-Mutant | -7/Factory Hacker-Mutant | -6/Factory Hacker-Mutant | -5/Factory Hacker-Mutant | -4/Factory Hacker-Mutant | -4/Upper Caves Hacker-Mutant | -4/Upper Caves Hacker-Mutant | -4/Warlord Hacker-Mutant | -3/Proximity Caves Scavenger-Mutant | -3/Research Mutant | -3/Testing Resources | -11 -10 -10 -9 -9 -9 -8 -8 -7 -6 -5 -4 -4 -4 -4 -3 -3 -3 ----------- Run | Scr Mat Min Mat Min Exi Min Mat Fac Fac Fac Fac Upp Upp War Pro Res Tes Matter Collected 3095 | 205 210 20 125 112 . 22 480 186 156 . 447 297 48 222 133 397 35 Remotely . | . . . . . . . . . . . . . . . . . . Salvage Created 5457 | 78 482 167 741 206 . . 1105 457 271 . 485 258 154 241 394 383 35 Parts 228 | 4 22 6 42 12 . . 46 19 17 . 14 4 3 2 18 16 3 Haulers Intercepted 2 | . . . 2 . . . . . . . . . . . . . . Recyclers Shooed 2 | 1 . . . . . . 1 . . . . . . . . . . Parts Field Recycled . | . . . . . . . . . . . . . . . . . . Retrieved Matter . | . . . . . . . . . . . . . . . . . . Parts Self-Destructed 41 | . . . . . . . . . . . . 22 2 . 17 . . Prevented . | . . . . . . . . . . . . . . . . . . Kills | -11 -10 -10 -9 -9 -9 -8 -8 -7 -6 -5 -4 -4 -4 -4 -3 -3 -3 ------- Run | Scr Mat Min Mat Min Exi Min Mat Fac Fac Fac Fac Upp Upp War Pro Res Tes Combat Hostiles Destroyed 132 | . 14 4 17 9 . . 26 9 4 . 11 6 4 10 13 4 1 Melee 1 | . . . . . . . . . . . . . . . . . 1 Guns 59 | . 14 3 16 2 . . 14 1 . . 3 . . . 3 3 . Cannons 22 | . . . . . . . 3 7 4 . 2 1 . 1 3 1 . AOE 43 | . . . . 6 . . 8 . . . 5 4 4 9 7 . . Classes Destroyed 16 | 2 3 . 2 1 . . 1 2 1 . . . . 3 . 1 . Worker 3 | . 1 . . 1 . . 1 . . . . . . . . . . Builder 1 | . . . . . . . 1 . . . . . . . . . . Tunneler 1 | 1 . . . . . . . . . . . . . . . . . Hauler 2 | . . . 2 . . . . . . . . . . . . . . Recycler 4 | 1 . . . . . . 2 . . . . . . . . 1 . Operator 1 | . . . . . . . . . . . . . . . . 1 . Watcher 1 | . . . . . . . . . 1 . . . . . . . . Swarmer 25 | . 3 . 4 3 . . 3 . . . 3 . . . 8 . 1 Grunt 71 | . 11 4 11 5 . . 16 2 3 . 4 4 4 4 3 . . Brawler 5 | . . . . 1 . . 1 . . . . 1 . 2 . . . Sentry 13 | . . . 2 . . . 6 3 . . 1 1 . . . . . Demolisher 1 | . . . . . . . . . . . . . . 1 . . . Hunter 5 | . . . . . . . . 1 . . . . . . . 4 . Programmer 10 | . . . . . . . . 3 1 . 3 . . 1 2 . . Behemoth 1 | . . . . . . . . . . . . . . 1 . . . Striker 1 | . . . . . . . . . . . . . . 1 . . . Decomposer 1 | . . . . . . . . . . . . 1 . . . . . Best Kill Streak 10 | 2 3 2 5 4 . . 9 2 3 . 6 3 4 10 7 2 1 Combat Bots Only 10 | . 3 2 5 3 . . 6 2 3 . 6 3 4 10 7 2 1 Max Kills in Single Turn 4 | 1 1 1 2 4 . . 3 1 1 . 2 1 1 3 3 1 1 Gunslinging . | . . . . . . . . . . . . . . . . . . Exploded 3 | . . . . 3 . . 1 . . . 2 1 1 3 2 . . Melee 1 | . . . . . . . . . . . . . . . . . 1 Uniques/NPCs Destroyed . | . . . . . . . . . . . . . . . . . . Combat | -11 -10 -10 -9 -9 -9 -8 -8 -7 -6 -5 -4 -4 -4 -4 -3 -3 -3 -------- Run | Scr Mat Min Mat Min Exi Min Mat Fac Fac Fac Fac Upp Upp War Pro Res Tes Damage Taken 10901 | . 787 225 232 141 . . 976 697 246 . 1223 737 139 124 1872 2670 832 Core 2385 | . 203 33 48 . . . 162 36 12 . 47 36 9 . 481 912 406 Absorbed by Shields 962 | . . . 46 51 . . 167 . . . . 162 53 47 436 . . Redirected to Shielding 86 | . . . . . . . 35 . . . 5 27 3 . 16 . . Regen/Repaired (Parts) 228 | . . . 67 . . . 22 . 139 . . . . . . . . Core Remaining (%) 75 | 100 . 5 . . . 88 70 94 98 100 . . . . 50 . . Volleys Fired 377 | 5 58 15 36 19 . . 72 33 9 . 41 19 7 8 36 19 . Largest 2 | 2 2 2 2 2 . . 2 2 2 . 2 2 1 1 2 2 . Hottest 335 | 60 100 100 106 96 . . 131 150 150 . 153 153 33 65 335 100 . Shots Fired 646 | 10 105 30 72 28 . . 122 62 18 . 62 28 7 8 56 38 . Gun 431 | 10 105 30 72 21 . . 98 6 . . 34 2 . . 24 29 . Cannon 151 | . . . . . . . 12 56 18 . 22 14 . 1 19 9 . Launcher 54 | . . . . 7 . . 12 . . . 6 12 7 . 10 . . Special 10 | . . . . . . . . . . . . . . 7 3 . . Kinetic 78 | 5 35 . . . . . . . . . . . . . . 38 . Thermal 509 | . 70 30 72 21 . . 110 62 18 . 56 16 . 1 53 . . Explosive 54 | . . . . 7 . . 12 . . . 6 12 7 7 3 . . Electromagnetic 5 | 5 . . . . . . . . . . . . . . . . . Robot Hit Streak 46 | 6 28 12 35 14 . . 34 46 27 . 17 16 6 14 12 9 . Robot Miss Streak 4 | 1 4 2 1 2 . . 2 1 . . 1 1 1 . 2 2 . Penetration Max . | . . . . . . . . . . . . . . . . . . Secondary Targets 8 | . 2 1 5 . . . . . . . . . . . . . . Max Gunslinging Chain 1 | . 1 1 1 . . . . . . . . . . . . . . Shots Hit Robots 542 | 9 78 24 64 19 . . 110 56 16 . 53 24 6 8 41 30 4 Core Hits 311 | 3 32 9 30 11 . . 64 14 9 . 26 30 15 31 23 13 1 Critical Kills 2 | 1 . . . . . . . . . . . . . . . 1 . Critical Parts Destroyed 7 | . . . . . . . . . . . 6 1 . . . . . Critical Strikes 29 | 1 4 1 5 1 . . 6 1 . . 6 1 . 1 1 1 . Burn 18 | . 4 1 5 1 . . 6 1 . . . . . . . . . Destroy 9 | 1 . . . . . . . . . . 6 1 . . . 1 . Sever 2 | . . . . . . . . . . . . . . 1 1 . . Melee Attacks 67 | . . . 13 1 2 . 11 6 10 2 15 . . . . 3 4 Impact 63 | . . . 13 1 2 . 11 6 10 2 15 . . . . 3 . Slashing 4 | . . . . . . . . . . . . . . . . . 4 Piercing . | . . . . . . . . . . . . . . . . . . Sneak Attacks 2 | . . . . . . . 1 . . . . . . . . 1 . Combat Hostiles . | . . . . . . . . . . . . . . . . . . Follow-up Attacks . | . . . . . . . . . . . . . . . . . . Damage Inflicted 18756 | 100 837 315 850 808 . . 2947 1459 404 . 2133 1600 720 3027 2646 691 219 Guns 5498 | 100 836 315 850 210 . . 1275 88 . . 938 54 . . 482 350 . Cannons 3667 | . . . . . . . 275 1371 381 . 646 346 . 26 438 184 . Explosions 8540 | . . . . 598 . . 1299 . . . 495 1200 720 2657 1571 . . Melee 551 | . . . . . . . 98 . 23 . 54 . . . . 157 219 Ramming 1 | . 1 . . . . . . . . . . . . . . . . Kinetic 803 | 43 226 . . . . . . . . . . . . . . 534 . Thermal 9026 | . 610 315 850 304 . . 1550 1459 381 . 1584 400 . 26 1547 . . Explosive 7819 | . . . . 504 . . 1299 . . . 495 1200 720 2657 944 . . Electromagnetic 57 | 57 . . . . . . . . . . . . . . . . . Impact 332 | . . . . . . . 98 . 23 . 54 . . . . 157 . Slashing 718 | . . . . . . . . . . . . . . 344 155 . 219 Piercing . | . . . . . . . . . . . . . . . . . . Highest Corruption 20 | . 1 1 . . . . . 2 1 . 6 6 6 6 2 14 20 Average Corruption 3 | . 1 1 . . . . . 1 1 . 5 6 6 6 1 6 14 Corruption Purged . | . . . . . . . . . . . . . . . . . . Corruption Blocked . | . . . . . . . . . . . . . . . . . . Effects 90 | . 4 . . . . . . 6 5 . 2 31 21 4 7 6 4 Message Errors 16 | . 1 . . . . . . 1 1 . . 5 3 1 1 2 1 Matter Fused 21 | . . . . . . . . 2 1 . 1 7 7 1 . . 2 Heat Flow Errors 18 | . 1 . . . . . . . 3 . . 4 5 1 2 2 . Energy Discharges 12 | . 1 . . . . . . 1 . . . 4 3 1 1 . 1 Parts Rejected 1 | . . . . . . . . . . . . . . . 1 . . Data Loss (minor) 9 | . 1 . . . . . . . . . 1 3 3 . . 1 . Data Loss (major) 6 | . . . . . . . . 1 . . . 3 . . 1 1 . Misfires 4 | . . . . . . . . . . . . 3 . . 1 . . Alerts 2 | . . . . . . . . 1 . . . 1 . . . . . Weapon Failures 1 | . . . . . . . . . . . . 1 . . . . . Overload Shots 1 | . . . . . . . . . . . . . . . 1 . . Effects 1 | . . . . . . . . . . . . . . . 1 . . Energy Bleed 1 | . . . . . . . . . . . . . . . 1 . . Overflow Damage 453 | . . . . 4 . . 149 69 . . 104 . . 8 64 48 7 Projectiles 140 | . . . . . . . . 69 . . 52 . . . 19 . . Explosions 128 | . . . . 4 . . 71 . . . . . . 8 45 . . Melee 185 | . . . . . . . 78 . . . 52 . . . . 48 7 Knockbacks 5 | . . . . . . . . . . . 1 . . . . 4 . Impact 2 | . . . . . . . . . . . 1 . . . . 1 . Kinetic 3 | . . . . . . . . . . . . . . . . 3 . Secondary . | . . . . . . . . . . . . . . . . . . Self-Inflicted Damage 107 | . . . . 46 . . 6 . . . 52 3 . . . . . Shots 6 | . . . . 2 . . 1 . . . 2 1 . . . . . Rammed . | . . . . . . . . . . . . . . . . . . Targets Rammed 1 | . 1 . . . . . . . . . . . . . . . . Kicked . | . . . . . . . . . . . . . . . . . . Crushed 1 | . 1 . . . . . . . . . . . . . . . . Highest Temperature 528 | 40 438 150 84 20 . 244 398 3 205 . . 112 196 51 528 247 . Average Temperature 108 | 23 149 60 31 14 . 122 122 3 91 . . 61 87 51 151 108 . Received Heat Transfer 2302 | . 447 165 153 56 . . 587 138 75 . 96 203 54 6 225 88 9 Effects 10 | . 5 . . . . . 2 . . . . . . . 3 . . Shutdowns 2 | . . . . . . . . . . . . . . . 2 . . Energy Bleed 2 | . . . . . . . 2 . . . . . . . . . . Interference 5 | . 5 . . . . . . . . . . . . . . . . Matter Decay 1 | . . . . . . . . . . . . . . . 1 . . Siege Activations . | . . . . . . . . . . . . . . . . . . Robots Corrupted . | . . . . . . . . . . . . . . . . . . Combat Hostiles . | . . . . . . . . . . . . . . . . . . Parts Fried 4 | . . . . . . . 2 . . . . . . . . 2 . Impact Corruptions 8 | . . . . . . . 3 . . . 2 . . . . 3 . Robots Melted 7 | . . 1 1 1 . . 1 1 . . 1 1 . . . . . Combat Hostiles 7 | . . 1 1 1 . . 1 1 . . 1 1 . . . . . Parts Melted 47 | . 3 2 6 1 . . 12 7 3 . 8 . . . 5 . . Heat Transferred 17658 | . 2109 999 2595 671 . . 4218 2146 555 . 1739 555 . 37 2034 . . Parts Sabotaged . | . . . . . . . . . . . . . . . . . . Parts Stolen . | . . . . . . . . . . . . . . . . . . Parts Stripped . | . . . . . . . . . . . . . . . . . . Power Chain Reactions . | . . . . . . . . . . . . . . . . . . Missiles Intercepted . | . . . . . . . . . . . . . . . . . . Alert | -11 -10 -10 -9 -9 -9 -8 -8 -7 -6 -5 -4 -4 -4 -4 -3 -3 -3 ------- Run | Scr Mat Min Mat Min Exi Min Mat Fac Fac Fac Fac Upp Upp War Pro Res Tes Peak Influence 1645 | 10 135 128 370 445 . . 390 143 121 67 341 . . . . 138 1645 Initial 50 | . 5 19 42 12 . . . 2 10 50 27 . . . . . 14 Average 89 | 6 36 95 111 281 . . 121 48 33 51 66 . . . . 24 1596 Maximum Alert Level 5 | . . . 1 2 . . 1 . . . 1 . . . . . 5 Low Security (%) 85 | 100 100 100 77 27 . 100 60 100 100 100 84 . . . . 100 1 Level 1 12 | . . . 22 46 . . 39 . . . 15 . . . . . . Level 2 1 | . . . . 25 . . . . . . . . . . . . . Level 3 . | . . . . . . . . . . . . . . . . . . Level 4 . | . . . . . . . . . . . . . . . . . . Level 5 . | . . . . . . . . . . . . . . . . . . High Security . | . . . . . . . . . . . . . . . . . . Max Security . | . . . . . . . . . . . . . . . . . 98 Squads Dispatched 27 | . 3 . 2 . . . 2 5 4 . 7 . . . . 4 . Investigation 12 | . 3 . 2 . . . 1 1 2 . 2 . . . . 1 . Extermination 8 | . . . . . . . . 3 2 . 2 . . . . 1 . Reinforcement 4 | . . . . . . . 1 1 . . . . . . . 2 . Assault . | . . . . . . . . . . . . . . . . . . Garrison 3 | . . . . . . . . . . . 3 . . . . . . Intercept . | . . . . . . . . . . . . . . . . . . Searches Triggered . | . . . . . . . . . . . . . . . . . . Construction Impeded . | . . . . . . . . . . . . . . . . . . Haulers Reinforced . | . . . . . . . . . . . . . . . . . . Active Scanning Responses . | . . . . . . . . . . . . . . . . . . Cargo Convoy Interrupts . | . . . . . . . . . . . . . . . . . . Stealth | -11 -10 -10 -9 -9 -9 -8 -8 -7 -6 -5 -4 -4 -4 -4 -3 -3 -3 --------- Run | Scr Mat Min Mat Min Exi Min Mat Fac Fac Fac Fac Upp Upp War Pro Res Tes Distress Signals 9 | . . . 4 . . . 3 . 1 . 1 . . . . . . Communications Jammed . | . . . . . . . . . . . . . . . . . . Distress Signals . | . . . . . . . . . . . . . . . . . . Times Spotted 237 | . 23 4 25 11 . . 34 13 13 1 15 14 4 31 15 22 12 Peak Tracking Total 14 | . 4 2 7 3 . . 7 3 5 1 6 7 4 12 4 14 10 Tactical Retreats 11 | . 1 . 2 1 . . 1 . 1 . 1 2 . 1 . . 1 Traps | -11 -10 -10 -9 -9 -9 -8 -8 -7 -6 -5 -4 -4 -4 -4 -3 -3 -3 ------- Run | Scr Mat Min Mat Min Exi Min Mat Fac Fac Fac Fac Upp Upp War Pro Res Tes Traps Triggered 8 | . 2 . . . . . . 2 . . 1 . . . . 1 2 Indirectly . | . . . . . . . . . . . . . . . . . . Trap Hack Attempts . | . . . . . . . . . . . . . . . . . . Triggered . | . . . . . . . . . . . . . . . . . . Disarmed . | . . . . . . . . . . . . . . . . . . Reprogrammed . | . . . . . . . . . . . . . . . . . . Reused . | . . . . . . . . . . . . . . . . . . Traps Extracted . | . . . . . . . . . . . . . . . . . . Installed . | . . . . . . . . . . . . . . . . . . Triggered 14 | . . . . . . . . . . . . . . 12 2 . . Machines | -11 -10 -10 -9 -9 -9 -8 -8 -7 -6 -5 -4 -4 -4 -4 -3 -3 -3 ---------- Run | Scr Mat Min Mat Min Exi Min Mat Fac Fac Fac Fac Upp Upp War Pro Res Tes Machines Disabled 9 | . . 1 . 3 1 . 1 . . . 2 . . . . 1 . Max in Single Turn 2 | . . 1 . 1 1 . 1 . . . 2 . . . . 1 . Garrison Access 3 | . . . . . . . 1 1 . . 1 . . . . . . Machines Sabotaged . | . . . . . . . . . . . . . . . . . . Garrisons Compromised . | . . . . . . . . . . . . . . . . . . Overloaded Fab Kills . | . . . . . . . . . . . . . . . . . . Hacking | -11 -10 -10 -9 -9 -9 -8 -8 -7 -6 -5 -4 -4 -4 -4 -3 -3 -3 --------- Run | Scr Mat Min Mat Min Exi Min Mat Fac Fac Fac Fac Upp Upp War Pro Res Tes Machines Accessed 58 | . 7 . 7 . 4 . 6 11 9 1 7 . . 5 . 1 . Terminals 32 | . 7 . 6 . . . 4 6 5 1 3 . . . . . . Fabricators 3 | . . . . . . . . 1 . . 2 . . . . . . Repair Stations 3 | . . . 1 . . . 1 . 1 . . . . . . . . Recycling Units 4 | . . . . . . . . 2 . . 1 . . . . 1 . Scanalyzers 3 | . . . . . . . . 1 2 . . . . . . . . Garrison Access 4 | . . . . . . . 1 1 1 . 1 . . . . . . Total Hacks 220 | . 17 . 24 . 49 . 18 29 36 6 34 . . 5 . 2 . Successful 149 | . 11 . 10 . 49 . 9 17 19 4 25 . . 5 . . . Failed 71 | . 6 . 14 . . . 9 12 17 2 9 . . . . 2 . Catastrophic 10 | . 1 . 1 . . . 1 2 2 1 1 . . . . 1 . Database Lockouts . | . . . . . . . . . . . . . . . . . . Manual 102 | . 15 . 17 . 3 . 12 13 16 2 21 . . 3 . . . Terminals 127 | . 17 . 22 . . . 14 18 24 6 26 . . . . . . Fabricators 8 | . . . . . . . . 2 . . 6 . . . . . . Repair Stations 10 | . . . 2 . . . 2 . 6 . . . . . . . . Recycling Units 6 | . . . . . . . . 3 . . 1 . . . . 2 . Scanalyzers 9 | . . . . . . . . 5 4 . . . . . . . . Garrison Access 6 | . . . . . . . 2 1 2 . 1 . . . . . . Terminal Hacks 105 | . 8 . 6 . 49 . 5 6 9 3 14 . . 5 . . . Record 58 | . . . . . 49 . . . 2 . 2 . . 5 . . . Robot Analysis 1 | . . . 1 . . . . . . . . . . . . . . Prototype ID Bank 3 | . . . 1 . . . . 1 . . 1 . . . . . . Level Access Points 1 | . . . . . . . . . . . 1 . . . . . . Branch Access Points 5 | . 1 . 1 . . . 1 1 . . 1 . . . . . . Emergency Access Points 4 | . 1 . . . . . . . 1 1 1 . . . . . . Terminal Index 5 | . 1 . 1 . . . 1 . 1 . 1 . . . . . . Fabricator Index 1 | . . . . . . . . . . . 1 . . . . . . Repair Station Index 1 | . . . . . . . . . . . 1 . . . . . . Scanalyzer Index 1 | . . . . . . . . 1 . . . . . . . . . Alert Level 8 | . 2 . 1 . . . . 2 2 . 1 . . . . . . Unreport Threat 7 | . 2 . 1 . . . 3 . . . 1 . . . . . . Locate Traps 2 | . . . . . . . . . . 1 1 . . . . . . Maintenance Status 1 | . . . . . . . . . . . 1 . . . . . . Recall Investigation 4 | . 1 . . . . . . 1 1 . 1 . . . . . . Hauler Manifests 1 | . . . . . . . . . . 1 . . . . . . . Zone Layout 2 | . . . . . . . . . 2 . . . . . . . . Fabricator Hacks 5 | . . . . . . . . . . . 5 . . . . . . Network Status 1 | . . . . . . . . . . . 1 . . . . . . Load Schematic 2 | . . . . . . . . . . . 2 . . . . . . Build 2 | . . . . . . . . . . . 2 . . . . . . Repair Station Hacks 10 | . . . 2 . . . 2 . 6 . . . . . . . . Scan Component 5 | . . . 1 . . . 1 . 3 . . . . . . . . Repair 5 | . . . 1 . . . 1 . 3 . . . . . . . . Recycling Unit Hacks 4 | . . . . . . . . 3 . . 1 . . . . . . Report Inventory 3 | . . . . . . . . 2 . . 1 . . . . . . Retrieve Components 1 | . . . . . . . . 1 . . . . . . . . . Scanalyzer 7 | . . . . . . . . 5 2 . . . . . . . . Insert Component 4 | . . . . . . . . 2 2 . . . . . . . . Analyze 3 | . . . . . . . . 3 . . . . . . . . . Garrison Access Hacks 3 | . . . . . . . 1 1 . . 1 . . . . . . Seal Access 3 | . . . . . . . 1 1 . . 1 . . . . . . Unauthorized Hacks 15 | . 3 . 2 . . . 1 2 2 1 4 . . . . . . Terminals 15 | . 3 . 2 . . . 1 2 2 1 4 . . . . . . Track 1 | . 1 . . . . . . . . . . . . . . . . Botnet 13 | . 2 . 2 . . . 1 2 2 1 3 . . . . . . Operators 1 | . . . . . . . . . . . 1 . . . . . . Fabricators . | . . . . . . . . . . . . . . . . . . Repair Stations . | . . . . . . . . . . . . . . . . . . Recycling Units . | . . . . . . . . . . . . . . . . . . Scanalyzers . | . . . . . . . . . . . . . . . . . . Garrison Access . | . . . . . . . . . . . . . . . . . . Data Cores Recovered . | . . . . . . . . . . . . . . . . . . Used . | . . . . . . . . . . . . . . . . . . Hacking Detections 38 | . 5 . 7 . . . 5 7 8 1 4 . . . . 1 . Full Trace Events 13 | . 2 . 4 . . . 1 1 2 . 2 . . . . 1 . Feedback Events 1 | . . . . . . . . . 1 . . . . . . . . Corruption 1 | . . . . . . . . . 1 . . . . . . . . Feedback Blocked . | . . . . . . . . . . . . . . . . . . Robot Schematics Acquired . | . . . . . . . . . . . . . . . . . . Robots Built . | . . . . . . . . . . . . . . . . . . Authchips . | . . . . . . . . . . . . . . . . . . Time . | . . . . . . . . . . . . . . . . . . Total Robot Build Rating . | . . . . . . . . . . . . . . . . . . Part Schematics Acquired 2 | . . . . . . . . 2 . . . . . . . . . Parts Built 4 | . . . . . . . . . . . 4 . . . . . . Authchips . | . . . . . . . . . . . . . . . . . . Time 84 | . . . . . . . . . . . 84 . . . . . . Total Part Build Rating 16 | . . . . . . . . . . . 16 . . . . . . Parts Repaired 5 | . . . 1 . . . 1 . 3 . . . . . . . . Time 148 | . . . 32 . . . 26 . 90 . . . . . . . . Parts Recycled . | . . . . . . . . . . . . . . . . . . Recycled Matter . | . . . . . . . . . . . . . . . . . . Retrieved Matter . | . . . . . . . . . . . . . . . . . . Retrieved Components 8 | . . . . . . . . 8 . . . . . . . . . Parts Scanalyzed 2 | . . . . . . . . 2 . . . . . . . . . Part Schematics Acquired 2 | . . . . . . . . 2 . . . . . . . . . Parts Damaged . | . . . . . . . . . . . . . . . . . . Bothacking | -11 -10 -10 -9 -9 -9 -8 -8 -7 -6 -5 -4 -4 -4 -4 -3 -3 -3 ------------ Run | Scr Mat Min Mat Min Exi Min Mat Fac Fac Fac Fac Upp Upp War Pro Res Tes Used RIF Installer . | . . . . . . . . . . . . . . . . . . Robots Hacked . | . . . . . . . . . . . . . . . . . . Non-combat . | . . . . . . . . . . . . . . . . . . Combat . | . . . . . . . . . . . . . . . . . . Robot Hacks Applied . | . . . . . . . . . . . . . . . . . . Relay Couplers Released . | . . . . . . . . . . . . . . . . . . Fabnet Peak Effective % . | . . . . . . . . . . . . . . . . . . Robots Rewired . | . . . . . . . . . . . . . . . . . . Allies Hacked . | . . . . . . . . . . . . . . . . . . Hacks Repelled . | . . . . . . . . . . . . . . . . . . Allies | -11 -10 -10 -9 -9 -9 -8 -8 -7 -6 -5 -4 -4 -4 -4 -3 -3 -3 -------- Run | Scr Mat Min Mat Min Exi Min Mat Fac Fac Fac Fac Upp Upp War Pro Res Tes Total Allies 5 | . . . . 5 . . . . . . . . . . . . . Largest Group 5 | . . . . 5 5 2 2 . . . . . . . . . . Highest-Rated Group 86 | . . . . 86 86 32 32 . . . . . . . . . . Highest-Rated Ally 31 | . . . . 31 31 16 16 . . . . . . . . . . Total Orders . | . . . . . . . . . . . . . . . . . . Ally Attacks 25 | . . . . 16 . . 9 . . . . . . . . . . Total Damage 406 | . . . . 313 . . 93 . . . . . . . . . . Kills 4 | . . . . 3 . . 1 . . . . . . . . . . Allies Corrupted . | . . . . . . . . . . . . . . . . . . Allies Melted 1 | . . . . . . . . . . . . . . 1 . . . Intel | -11 -10 -10 -9 -9 -9 -8 -8 -7 -6 -5 -4 -4 -4 -4 -3 -3 -3 ------- Run | Scr Mat Min Mat Min Exi Min Mat Fac Fac Fac Fac Upp Upp War Pro Res Tes Robot Analysis Total 1 | . . . 1 . . . . . . . . . . . . . . Derelict Logs Recovered 3 | . . . . 1 . . . . . . . . 2 . . . . Drone Launches . | . . . . . . . . . . . . . . . . . . Drone Recoveries . | . . . . . . . . . . . . . . . . . . Exploration | -11 -10 -10 -9 -9 -9 -8 -8 -7 -6 -5 -4 -4 -4 -4 -3 -3 -3 ------------- Run | Scr Mat Min Mat Min Exi Min Mat Fac Fac Fac Fac Upp Upp War Pro Res Tes Turns Passed 13496 | 28 984 118 819 646 757 229 1265 1738 1525 227 1185 849 679 1144 440 772 91 Spaces Moved 8873 | 8 475 35 436 481 621 188 618 1131 806 173 711 634 549 892 237 678 200 Core 196 | . . . . . . . . . . . . . . . 29 165 2 Treads 221 | . 138 . . . . . . . . . . . . . . 83 . Legs 8089 | 8 337 35 436 481 621 188 618 1131 806 173 711 634 549 892 208 261 . Wheels . | . . . . . . . . . . . . . . . . . . Hover 124 | . . . . . . . . . . . . . . . . 124 . Flight 243 | . . . . . . . . . . . . . . . . 45 198 Fastest Speed 34 | 120 120 190 120 120 120 120 120 120 122 122 121 120 120 118 50 34 34 Average Speed 120 | 120 158 190 120 120 120 120 130 124 122 122 121 120 120 119 125 91 35 Slowest Speed 260 | 120 260 190 120 120 120 120 190 190 122 122 122 122 120 120 255 190 50 Overloaded Moves . | . . . . . . . . . . . . . . . . . . Propulsion Burnouts . | . . . . . . . . . . . . . . . . . . Robots Hopped 2 | . . . . . . . . . . . . . . . . 2 . Cave-ins Triggered . | . . . . . . . . . . . . . . . . . . Exploration Rate (%) 43 | 2 87 6 35 75 94 51 48 40 24 6 15 64 67 87 49 12 24 Regions Visited 17 Branch Regions 9 Pre-discovered Areas 2 | . . . . . 1 . . . . . . . 1 . . . . Known Exits Taken 5 | . 1 . 1 . . . . . . . 1 . . . 1 1 . Unknown Exits Taken 12 | 1 . 1 . 1 1 1 1 1 1 1 . 1 1 1 . . . Scrap Searched 5 | . . . . 2 . 1 . . . . . 2 . . . . . Spaces Dug 55 | . . . 11 11 . . 7 6 8 1 11 . . . . . . Terrain Destroyed 438 | . . . 11 80 . . 84 6 8 1 58 58 28 72 30 2 . Melee 44 | . . . 11 . . . 7 6 8 1 11 . . . . . . Projectile 8 | . . . . . . . . . . . 4 1 . . 1 2 . AOE 386 | . . . . 80 . . 77 . . . 43 57 28 72 29 . . Terrain Rammed . | . . . . . . . . . . . . . . . . . . Walls Destroyed . | . . . . . . . . . . . . . . . . . . Machines Disabled . | . . . . . . . . . . . . . . . . . . Actions | -11 -10 -10 -9 -9 -9 -8 -8 -7 -6 -5 -4 -4 -4 -4 -3 -3 -3 --------- Run | Scr Mat Min Mat Min Exi Min Mat Fac Fac Fac Fac Upp Upp War Pro Res Tes Total 10949 | 18 606 58 641 520 631 190 934 1397 1309 186 940 692 560 959 317 779 212 Wait 1196 | . 30 5 121 10 . . 153 163 464 . 143 22 . 36 19 27 3 Move 8852 | 7 474 34 435 480 620 187 617 1130 805 172 710 633 548 891 236 673 200 Hop 2 | . . . . . . . . . . . . . . . . 2 . Pick Up 127 | 3 14 . 11 3 2 . 27 20 8 5 4 7 . 9 2 12 . Fast Attach 43 | . 3 . 1 . 2 . 5 . 1 . 6 1 . 1 1 19 3 Attach 56 | 1 4 . 5 1 . . 7 6 3 2 7 7 1 2 5 5 . Detach 3 | . . . . . . . 1 . . . . . . . 1 1 . Swap 116 | . 11 2 7 4 1 3 21 16 7 2 11 3 4 6 14 4 . Drop 107 | 2 11 2 12 2 4 . 20 23 2 3 3 . . 6 3 14 . Fire 377 | 5 58 15 36 19 . . 72 33 9 . 41 19 7 8 36 19 . Melee 67 | . . . 13 1 2 . 11 6 10 2 15 . . . . 3 4 Ram . | . . . . . . . . . . . . . . . . . . Kick . | . . . . . . . . . . . . . . . . . . Crush 1 | . 1 . . . . . . . . . . . . . . . . Escape Stasis 2 | . . . . . . . . . . . . . . . . . 2 Rewire . | . . . . . . . . . . . . . . . . . . Trap . | . . . . . . . . . . . . . . . . . . Miscellaneous . | . . . . . . . . . . . . . . . . . . Route ------- -11/Scrapyard -10/Materials (discovered 3 exits: *Mat x2 / *Min) -10/Mines -9/Materials (discovered 2 exits: *Min x2) -9/Mines (discovered 3 exits: *Mat x2 / *Exi) -9/Exiles (discovered 2 exits: [*Min x2]) -8/Mines -8/Materials -7/Factory (discovered 5 exits: *Fac x2 / Sto / *Low x2) -6/Factory -5/Factory -4/Factory (discovered 7 exits: Res x4 / *Upp x2 / Arm) -4/Upper Caves -4/Upper Caves (discovered 2 exits: *Res / *War) -4/Warlord -3/Proximity Caves -3/Research (discovered 2 exits: Res / *Tes) -3/Testing History --------- Turn | Location | Event 1 | -11/Scrapyard | Discovered new exit (range 3) 29 | -11/Scrapyard | Entered Materials 62 | -10/Materials | Identified exit to Mines 108 | -10/Materials | Discovered new exit (range 10) 303 | -10/Materials | Build established: Mutant 545 | -10/Materials | Core integrity fell below 50% 667 | -10/Materials | Discovered new exit (range 8) 824 | -10/Materials | Core integrity fell below 20% 1013 | -10/Materials | Entered Mines 1092 | -10/Mines | Discovered new exit (range 5) 1131 | -10/Mines | Entered Materials 1131 | -9/Materials | Evolved 2 slots: Propulsion x1, Utility x1 1226 | -9/Materials | Repaired Imp. Ion Engine 1433 | -9/Materials | Build established: Scavenger-Mutant 1677 | -9/Materials | Discovered new exit (range 7) 1756 | -9/Materials | Identified exit to Mines 1950 | -9/Materials | Entered Mines 1982 | -9/Mines | Learned Materials stockpile data 2274 | -9/Mines | Deemed a non-threat by the Exiles lab entrance 2274 | -9/Mines | Discovered new exit (range 5) 2449 | -9/Mines | Discovered new exit (range 7) 2493 | -9/Mines | Assisted by bots powering up and referring to "LRC-V3" 2499 | -9/Mines | Discovered new exit (range 15) 2596 | -9/Mines | Entered Exiles 2596 | -9/Exiles | Accompanied by 5 allies 2626 | -9/Exiles | Led the pair of lost Derelicts to a safe place 2640 | -9/Exiles | Discovered new exit (range 14) 2664 | -9/Exiles | Met 8R-AWN 2686 | -9/Exiles | Met EX-HEX 2765 | -9/Exiles | Met EX-DEC 2810 | -9/Exiles | Visited The Gauntlet 2978 | -9/Exiles | Learned location of Zion (-6) 3039 | -9/Exiles | Discovered new exit (range 14) 3123 | -9/Exiles | Met EX-BIN 3138 | -9/Exiles | Aligned with FarCom system 3140 | -9/Exiles | Given EX-Vault access code 3195 | -9/Exiles | Opened EX-Vault 3203 | -9/Exiles | Found Prototype Device 3204 | -9/Exiles | Identified Chronowheel 3204 | -9/Exiles | Activated Chronowheel 3234 | -9/Exiles | Warned to stay clear of 0b10 Research branches 3247 | -9/Exiles | Exiles lab attacked by MAIN.C 3353 | -9/Exiles | Entered Mines 3353 | -8/Mines | Accompanied by 2 allies 3569 | -8/Mines | Discovered new exit (range 11) 3582 | -8/Mines | Entered Materials 3582 | -8/Materials | Accompanied by 2 allies 3582 | -8/Materials | Evolved 2 slots: Propulsion x1, Utility x1 3770 | -8/Materials | Repaired Heat Sink 4298 | -8/Materials | Lost 3 parts (2n1u) 4671 | -8/Materials | Discovered new exit (range 13) 4847 | -8/Materials | Entered Factory 4847 | -7/Factory | Evolved 2 slots: Propulsion x1, Utility x1 6144 | -7/Factory | Identified exit to Storage 6144 | -7/Factory | Identified exit to Lower Caves 6326 | -7/Factory | Discovered new exit (range 5) 6456 | -7/Factory | Build established: Hacker-Mutant 6561 | -7/Factory | Discovered new exit (range 12) 6585 | -7/Factory | Entered another Factory area 6585 | -6/Factory | Evolved 2 slots: Utility x2 6609 | -6/Factory | Repaired Rocket Launcher 6635 | -6/Factory | Repaired Aluminum Leg 6672 | -6/Factory | Repaired Rocket Launcher 8008 | -6/Factory | Discovered new exit (range 15) 8110 | -6/Factory | Entered another Factory area 8110 | -5/Factory | Evolved 2 slots: Utility x2 8330 | -5/Factory | Discovered new exit (range 7) 8337 | -5/Factory | Entered another Factory area 8337 | -4/Factory | Evolved 2 slots: Power x1, Propulsion x1 8515 | -4/Factory | Identified exit to Upper Caves 8515 | -4/Factory | Identified exit to Armory 8515 | -4/Factory | Identified exit to Research 8956 | -4/Factory | Fabricated Imp. Carbon-fiber Leg? 9315 | -4/Factory | Garrison activated, responded to threat 9328 | -4/Factory | Fabricated Imp. Carbon-fiber Leg (x2) 9450 | -4/Factory | Lost 3 parts (1p1n1u) 9522 | -4/Factory | Entered Upper Caves 9655 | -4/Upper Caves | Encountered a Warlord checkpoint 9830 | -4/Upper Caves | Lost 3 parts (1p2n) 9937 | -4/Upper Caves | Attracted the attention of an 0b10 outpost 10066 | -4/Upper Caves | Lost 6 parts (3n2u1w) 10162 | -4/Upper Caves | Discovered new exit (range 8) 10371 | -4/Upper Caves | Entered another Upper Caves area 10507 | -4/Upper Caves | Learned location of Quarantine (-2) 10549 | -4/Upper Caves | Discovered exit to Research (range 16) 10927 | -4/Upper Caves | Encountered a Warlord checkpoint 10942 | -4/Upper Caves | Learned location of 2 exits from Research 11034 | -4/Upper Caves | Discovered new exit (range 15) 11050 | -4/Upper Caves | Entered Warlord 11102 | -4/Warlord | Discovered new exit (range 15) 11145 | -4/Warlord | System corruption cleaned by Quarantine Array 11652 | -4/Warlord | Found Prototype Special Weapon 11708 | -4/Warlord | Warlord's base attacked by MAIN.C 11823 | -4/Warlord | Met Warlord 11881 | -4/Warlord | Identified RU-N14's Throwing Claymores v3 12058 | -4/Warlord | Warlord forces counterattacked 12065 | -4/Warlord | Spotted Striker 12139 | -4/Warlord | Spotted B-86 Titan 12139 | -4/Warlord | Spotted B-90 Cyclops 12142 | -4/Warlord | Spotted Striker 12146 | -4/Warlord | Destroyed B-90 Cyclops 12146 | -4/Warlord | Destroyed Striker 12169 | -4/Warlord | Destroyed 10 combat bots 12194 | -4/Warlord | Entered Proximity Caves 12385 | -3/Proximity Caves | Destroyed 7 combat bots 12570 | -3/Proximity Caves | Spotted B-86 Titan 12617 | -3/Proximity Caves | Released all parts (5) 12627 | -3/Proximity Caves | Discovered exit to Research (range 15) 12631 | -3/Proximity Caves | Attracted the attention of an 0b10 checkpoint 12634 | -3/Proximity Caves | Entered Research 12634 | -3/Research | Evolved 2 slots: Propulsion x1, Utility x1 12635 | -3/Research | Identified exit to Research 12635 | -3/Research | Identified exit to Testing 12647 | -3/Research | Lost 12 parts (2p7n2u1w) 13183 | -3/Research | Build established: Scavenger-Mutant 13356 | -3/Research | Lost 6 parts (4n2u) 13370 | -3/Research | System corruption reached 10% 13383 | -3/Research | Spotted B-86 Titan 13384 | -3/Research | Core integrity fell below 50% 13406 | -3/Research | Entered Testing 13407 | -3/Testing | Maximum security lockdown engaged 13412 | -3/Testing | Lost 5 parts (1p3n1u) 13483 | -3/Testing | Found Prototype Slashing Weapon 13483 | -3/Testing | Identified Nanosword 13488 | -3/Testing | Core integrity fell below 20% 13497 | -3/Testing | Destroyed by P-80 Master with Gamma Rifle Last Messages --------------- 13446_ Field Propulsion Array destroyed. 13465_ System corrupted: Energy discharge (-5). 13468_ Field Propulsion Array destroyed. 13469_ Acquired Lgt. Particle Reactor. 13471_ S-43 Plague destroyed. 13472_ Acquired Antigrav Array. 13473_ P-80 Master resets S-43 Plague, system corruption cleaned. 13475_ Lgt. Particle Reactor destroyed. 13477_ S-43 Plague shuts down. 13483_ Acquired Prototype Slashing Weapon. 13483_ Identified Nanosword. 13487_ S-43 Plague destroyed. 13489_ SY